[Event "Titled Tuesday Blitz March 07 Early 2023"]
[White "Hamedi Nia, Vesal"]
[Black "Hayrapetyan, Hovik"]
[WhiteFideId "12542253"]
[BlackFideId "13302639"]
[WhiteElo "1822"]
[BlackElo "2348"]
[Result "0-1"]
[Round "01"]
[TimeControl "180+2"]
[Date "2023.03.07"]
[WhiteClock "0:00:17"]
[BlackClock "0:00:42"]

1. d4 {[%clk 0:02:58]}  Nf6 {[%clk 0:02:59]} 2. c4 {[%clk 0:02:59]}  e6 {[%clk 0:02:59]} 3. Nf3 {[%clk 0:02:59]}  d5 {[%clk 0:02:59]} 4. Nc3 {[%clk 0:02:59]}  Bb4 {[%clk 0:02:59]} 5. Qa4+ {[%clk 0:02:59]}  Nc6 {[%clk 0:02:59]} 6. e3 {[%clk 0:02:59]}  O-O {[%clk 0:02:58]} 7. Bd2 {[%clk 0:02:59]}  Re8 {[%clk 0:02:49]} 8. a3 {[%clk 0:02:51]}  Bf8 {[%clk 0:02:48]} 9. Rd1 {[%clk 0:02:37]}  a6 {[%clk 0:02:40]} 10. Qc2 {[%clk 0:02:37]}  e5 {[%clk 0:02:29]} 11. cxd5 {[%clk 0:02:26]}  Nxd4 {[%clk 0:02:28]} 12. exd4 {[%clk 0:02:19]}  exd4+ {[%clk 0:02:29]} 13. Ne2 {[%clk 0:02:16]}  Qxd5 {[%clk 0:02:28]} 14. Bf4 {[%clk 0:01:39]}  c5 {[%clk 0:02:15]} 15. b3 {[%clk 0:01:27]}  b5 {[%clk 0:02:04]} 16. b4 {[%clk 0:01:09]}  Bf5 {[%clk 0:02:02]} 17. Qb2 {[%clk 0:00:58]}  d3 {[%clk 0:01:56]} 18. Ne5 {[%clk 0:00:49]}  c4 {[%clk 0:01:38]} 19. Ng3 {[%clk 0:00:39]}  Bg4 {[%clk 0:01:10]} 20. f3 {[%clk 0:00:35]}  Bd6 {[%clk 0:01:09]} 21. fxg4 {[%clk 0:00:18]}  Rxe5+ {[%clk 0:01:02]} 22. Bxe5 {[%clk 0:00:19]}  Bxe5 {[%clk 0:01:03]} 23. Qd2 {[%clk 0:00:17]}  Re8 {[%clk 0:01:01]} 24. Bxd3 {[%clk 0:00:17]}  Bc3+ {[%clk 0:00:42]} 0-1


[Site "https://www.chess.com"]

[Event "Titled Tuesday Blitz March 07 Early 2023"]
[White "Corrales Jimenez, Fidel"]
[Black "Droin, Augustin"]
[WhiteFideId "3506690"]
[BlackFideId "45105987"]
[WhiteElo "2541"]
[BlackElo "2316"]
[Result "1-0"]
[Round "01"]
[TimeControl "180+2"]
[Date "2023.03.07"]
[WhiteClock "0:01:43"]
[BlackClock "0:01:03"]

1. b3 {[%clk 0:03:00]}  e5 {[%clk 0:02:58]} 2. Bb2 {[%clk 0:03:01]}  Nc6 {[%clk 0:02:57]} 3. e3 {[%clk 0:03:01]}  d5 {[%clk 0:02:58]} 4. Bb5 {[%clk 0:03:01]}  Ne7 {[%clk 0:02:58]} 5. Bxe5 {[%clk 0:03:00]}  a6 {[%clk 0:02:58]} 6. Bxc6+ {[%clk 0:03:00]}  Nxc6 {[%clk 0:02:59]} 7. Bb2 {[%clk 0:03:00]}  Qg5 {[%clk 0:02:58]} 8. Qf3 {[%clk 0:02:58]}  Bg4 {[%clk 0:02:58]} 9. Qg3 {[%clk 0:02:58]}  Bd6 {[%clk 0:02:58]} 10. f4 {[%clk 0:02:58]}  Qf5 {[%clk 0:02:58]} 11. h3 {[%clk 0:02:53]}  Bh5 {[%clk 0:02:58]} 12. Qxg7 {[%clk 0:02:53]}  O-O-O {[%clk 0:02:57]} 13. g4 {[%clk 0:02:47]}  Qe4 {[%clk 0:02:43]} 14. Rh2 {[%clk 0:02:41]}  Bxf4 {[%clk 0:02:28]} 15. Nc3 {[%clk 0:02:36]}  Bg3+ {[%clk 0:02:23]} 16. Kd1 {[%clk 0:02:26]}  Qe6 {[%clk 0:02:04]} 17. Rg2 {[%clk 0:02:25]}  Be5 {[%clk 0:02:04]} 18. Qg5 {[%clk 0:02:22]}  Bg6 {[%clk 0:02:04]} 19. d4 {[%clk 0:02:16]}  Bg7 {[%clk 0:01:57]} 20. Qf4 {[%clk 0:02:05]}  Rhe8 {[%clk 0:01:56]} 21. Kd2 {[%clk 0:02:02]}  Nb4 {[%clk 0:01:50]} 22. Rc1 {[%clk 0:02:00]}  c5 {[%clk 0:01:34]} 23. Nge2 {[%clk 0:01:57]}  Nxc2 {[%clk 0:01:14]} 24. Rxc2 {[%clk 0:01:56]}  Bxc2 {[%clk 0:01:15]} 25. Kxc2 {[%clk 0:01:56]}  Qxe3 {[%clk 0:01:14]} 26. Qxe3 {[%clk 0:01:56]}  Rxe3 {[%clk 0:01:15]} 27. Nd1 {[%clk 0:01:54]}  Ree8 {[%clk 0:01:13]} 28. dxc5 {[%clk 0:01:53]}  Bxb2 {[%clk 0:01:13]} 29. Nxb2 {[%clk 0:01:54]}  d4 {[%clk 0:01:13]} 30. Nd3 {[%clk 0:01:54]}  Re3 {[%clk 0:01:14]} 31. Nef4 {[%clk 0:01:54]}  Kc7 {[%clk 0:01:14]} 32. b4 {[%clk 0:01:54]}  Kc6 {[%clk 0:01:15]} 33. a4 {[%clk 0:01:54]}  Rde8 {[%clk 0:01:12]} 34. Kb3 {[%clk 0:01:53]}  b5 {[%clk 0:01:07]} 35. cxb6 {[%clk 0:01:51]}  Kxb6 {[%clk 0:01:07]} 36. Kc4 {[%clk 0:01:51]}  Rd8 {[%clk 0:01:07]} 37. Rd2 {[%clk 0:01:46]}  Ka7 {[%clk 0:01:05]} 38. Nd5 {[%clk 0:01:43]}  Rxh3 {[%clk 0:01:04]} 39. Kxd4 {[%clk 0:01:42]}  Rg3 {[%clk 0:01:04]} 40. Ne5 {[%clk 0:01:42]}  f6 {[%clk 0:01:04]} 41. Nc6+ {[%clk 0:01:42]}  Ka8 {[%clk 0:01:03]} 42. Nxd8 {[%clk 0:01:43]} 1-0


[Site "https://www.chess.com"]

[Event "Titled Tuesday Blitz March 07 Early 2023"]
[White "Zahid, Sanatan"]
[Black "Heinemann, Josefine"]
[WhiteFideId "10201963"]
[BlackFideId "12900460"]
[WhiteElo "1865"]
[BlackElo "2342"]
[Result "1/2-1/2"]
[Round "01"]
[TimeControl "180+2"]
[Date "2023.03.07"]
[WhiteClock "0:00:14"]
[BlackClock "0:00:06"]

1. d4 {[%clk 0:03:00]}  Nf6 {[%clk 0:02:57]} 2. Nc3 {[%clk 0:03:00]}  d5 {[%clk 0:02:56]} 3. Bf4 {[%clk 0:03:00]}  c5 {[%clk 0:02:54]} 4. e4 {[%clk 0:02:55]}  Nxe4 {[%clk 0:02:53]} 5. Nxe4 {[%clk 0:02:53]}  dxe4 {[%clk 0:02:54]} 6. dxc5 {[%clk 0:02:54]}  Qxd1+ {[%clk 0:02:52]} 7. Rxd1 {[%clk 0:02:54]}  Nc6 {[%clk 0:02:48]} 8. Bb5 {[%clk 0:02:52]}  f6 {[%clk 0:02:36]} 9. Ne2 {[%clk 0:02:49]}  e5 {[%clk 0:02:35]} 10. Be3 {[%clk 0:02:49]}  Be6 {[%clk 0:02:18]} 11. Nc3 {[%clk 0:02:48]}  f5 {[%clk 0:02:17]} 12. O-O {[%clk 0:02:41]}  a6 {[%clk 0:02:04]} 13. Ba4 {[%clk 0:02:33]}  Rd8 {[%clk 0:01:51]} 14. Bg5 {[%clk 0:02:27]}  Be7 {[%clk 0:01:44]} 15. Bxe7 {[%clk 0:02:13]}  Kxe7 {[%clk 0:01:43]} 16. Bxc6 {[%clk 0:02:13]}  bxc6 {[%clk 0:01:43]} 17. b3 {[%clk 0:02:09]}  Rd4 {[%clk 0:01:32]} 18. Ne2 {[%clk 0:02:09]}  Rd5 {[%clk 0:01:30]} 19. Rxd5 {[%clk 0:02:08]}  cxd5 {[%clk 0:01:26]} 20. Rd1 {[%clk 0:02:09]}  d4 {[%clk 0:01:24]} 21. Nc1 {[%clk 0:02:03]}  a5 {[%clk 0:01:07]} 22. c3 {[%clk 0:01:50]}  Rc8 {[%clk 0:00:57]} 23. cxd4 {[%clk 0:01:04]}  exd4 {[%clk 0:00:57]} 24. Rxd4 {[%clk 0:01:05]}  Rxc5 {[%clk 0:00:58]} 25. Rd1 {[%clk 0:01:01]}  Rc2 {[%clk 0:00:57]} 26. g3 {[%clk 0:00:57]}  Bf7 {[%clk 0:00:48]} 27. Re1 {[%clk 0:00:55]}  Bh5 {[%clk 0:00:45]} 28. a3 {[%clk 0:00:52]}  Kd6 {[%clk 0:00:34]} 29. h3 {[%clk 0:00:47]}  Bf3 {[%clk 0:00:33]} 30. g4 {[%clk 0:00:40]}  f4 {[%clk 0:00:30]} 31. h4 {[%clk 0:00:38]}  Kd5 {[%clk 0:00:26]} 32. g5 {[%clk 0:00:37]}  Kd4 {[%clk 0:00:20]} 33. Kf1 {[%clk 0:00:36]}  e3 {[%clk 0:00:20]} 34. Ne2+ {[%clk 0:00:32]}  Ke4 {[%clk 0:00:07]} 35. fxe3 {[%clk 0:00:33]}  fxe3 {[%clk 0:00:06]} 36. b4 {[%clk 0:00:29]}  axb4 {[%clk 0:00:05]} 37. axb4 {[%clk 0:00:30]}  Bxe2+ {[%clk 0:00:03]} 38. Rxe2 {[%clk 0:00:31]}  Rc1+ {[%clk 0:00:03]} 39. Re1 {[%clk 0:00:29]}  Rc2 {[%clk 0:00:01]} 40. Re2 {[%clk 0:00:28]}  Rc1+ {[%clk 0:00:02]} 41. Kg2 {[%clk 0:00:28]}  Kf4 {[%clk 0:00:02]} 42. b5 {[%clk 0:00:22]}  Rb1 {[%clk 0:00:01]} 43. Rc2 {[%clk 0:00:22]}  Rxb5 {[%clk 0:00:01]} 44. Rc4+ {[%clk 0:00:22]}  Kf5 {[%clk 0:00:02]} 45. Kf3 {[%clk 0:00:23]}  Rb3 {[%clk 0:00:02]} 46. Rf4+ {[%clk 0:00:21]}  Kg6 {[%clk 0:00:02]} 47. Kg4 {[%clk 0:00:19]}  h5+ {[%clk 0:00:02]} 48. gxh6 {[%clk 0:00:19]}  Kxh6 {[%clk 0:00:02]} 49. Re4 {[%clk 0:00:20]}  g6 {[%clk 0:00:02]} 50. Re7 {[%clk 0:00:19]}  Ra3 {[%clk 0:00:02]} 51. Re6 {[%clk 0:00:19]}  Ra4+ {[%clk 0:00:02]} 52. Kg3 {[%clk 0:00:19]}  Ra3 {[%clk 0:00:03]} 53. Re4 {[%clk 0:00:17]}  Rb3 {[%clk 0:00:03]} 54. Kg4 {[%clk 0:00:17]}  Ra3 {[%clk 0:00:03]} 55. Re6 {[%clk 0:00:18]}  Rb3 {[%clk 0:00:04]} 56. Re8 {[%clk 0:00:17]}  Rb4+ {[%clk 0:00:04]} 57. Kg3 {[%clk 0:00:18]}  Rb3 {[%clk 0:00:05]} 58. Kf3 {[%clk 0:00:17]}  Ra3 {[%clk 0:00:06]} 59. Rd8 {[%clk 0:00:17]}  Ra4 {[%clk 0:00:06]} 60. Kg3 {[%clk 0:00:15]}  Ra3 {[%clk 0:00:06]} 61. Re8 {[%clk 0:00:15]}  Rb3 {[%clk 0:00:06]} 62. Kf4 {[%clk 0:00:16]}  Rb4+ {[%clk 0:00:06]} 63. Kg3 {[%clk 0:00:14]}  Rb3 {[%clk 0:00:06]} 1/2-1/2


[Site "https://www.chess.com"]

[Event "Titled Tuesday Blitz March 07 Early 2023"]
[White "Fikiet, Alex"]
[Black "Krzyzanowski, Marcin"]
[WhiteFideId "2052717"]
[BlackFideId "1132199"]
[WhiteElo "2425"]
[BlackElo "2471"]
[Result "0-1"]
[Round "01"]
[TimeControl "180+2"]
[Date "2023.03.07"]
[WhiteClock "0:00:09"]
[BlackClock "0:00:05"]

1. e4 {[%clk 0:03:00]}  c5 {[%clk 0:02:59]} 2. Nf3 {[%clk 0:02:59]}  Nc6 {[%clk 0:02:58]} 3. Bb5 {[%clk 0:02:59]}  g6 {[%clk 0:02:57]} 4. Bxc6 {[%clk 0:02:57]}  bxc6 {[%clk 0:02:57]} 5. O-O {[%clk 0:02:41]}  Bg7 {[%clk 0:02:56]} 6. Re1 {[%clk 0:02:41]}  Qc7 {[%clk 0:02:52]} 7. e5 {[%clk 0:02:23]}  f6 {[%clk 0:02:44]} 8. exf6 {[%clk 0:02:15]}  Nxf6 {[%clk 0:02:45]} 9. Nc3 {[%clk 0:02:13]}  d6 {[%clk 0:02:36]} 10. Qe2 {[%clk 0:02:08]}  e5 {[%clk 0:02:28]} 11. d3 {[%clk 0:02:08]}  O-O {[%clk 0:02:28]} 12. h3 {[%clk 0:02:06]}  Nh5 {[%clk 0:02:26]} 13. Ne4 {[%clk 0:01:52]}  Nf4 {[%clk 0:02:20]} 14. Bxf4 {[%clk 0:01:50]}  Rxf4 {[%clk 0:02:21]} 15. c3 {[%clk 0:01:50]}  Ba6 {[%clk 0:02:05]} 16. Nfd2 {[%clk 0:01:44]}  Raf8 {[%clk 0:02:04]} 17. f3 {[%clk 0:01:41]}  Qe7 {[%clk 0:01:57]} 18. b4 {[%clk 0:01:35]}  cxb4 {[%clk 0:01:52]} 19. cxb4 {[%clk 0:01:35]}  d5 {[%clk 0:01:49]} 20. Nc5 {[%clk 0:01:34]}  Bc8 {[%clk 0:01:50]} 21. Rac1 {[%clk 0:01:28]}  Rxb4 {[%clk 0:01:47]} 22. Ndb3 {[%clk 0:01:22]}  Rbf4 {[%clk 0:01:41]} 23. d4 {[%clk 0:01:19]}  R4f5 {[%clk 0:01:31]} 24. Na5 {[%clk 0:01:06]}  Qf6 {[%clk 0:01:09]} 25. dxe5 {[%clk 0:01:03]}  Rxe5 {[%clk 0:01:08]} 26. Qxe5 {[%clk 0:01:01]}  Qxe5 {[%clk 0:01:08]} 27. Rxe5 {[%clk 0:01:01]}  Bxe5 {[%clk 0:01:09]} 28. Nxc6 {[%clk 0:01:01]}  Bg3 {[%clk 0:01:02]} 29. Nxa7 {[%clk 0:00:44]}  Bf5 {[%clk 0:01:01]} 30. Nc6 {[%clk 0:00:43]}  Re8 {[%clk 0:01:01]} 31. Nd4 {[%clk 0:00:39]}  Bc8 {[%clk 0:00:55]} 32. a4 {[%clk 0:00:36]}  Bf4 {[%clk 0:00:55]} 33. Rd1 {[%clk 0:00:36]}  Re3 {[%clk 0:00:48]} 34. Kf2 {[%clk 0:00:27]}  Ra3 {[%clk 0:00:48]} 35. Ne2 {[%clk 0:00:26]}  Be3+ {[%clk 0:00:48]} 36. Kf1 {[%clk 0:00:25]}  Bxc5 {[%clk 0:00:48]} 37. Rc1 {[%clk 0:00:26]}  Ba6 {[%clk 0:00:43]} 38. Rxc5 {[%clk 0:00:23]}  Ra2 {[%clk 0:00:36]} 39. Rxd5 {[%clk 0:00:23]}  Bxe2+ {[%clk 0:00:33]} 40. Kg1 {[%clk 0:00:23]}  Rxa4 {[%clk 0:00:32]} 41. Rd8+ {[%clk 0:00:22]}  Kg7 {[%clk 0:00:31]} 42. Rd2 {[%clk 0:00:23]}  Bc4 {[%clk 0:00:30]} 43. Rd4 {[%clk 0:00:22]}  Ra1+ {[%clk 0:00:30]} 44. Kf2 {[%clk 0:00:23]}  Be6 {[%clk 0:00:30]} 45. Re4 {[%clk 0:00:22]}  Kf6 {[%clk 0:00:30]} 46. g4 {[%clk 0:00:22]}  Ra3 {[%clk 0:00:27]} 47. Kg3 {[%clk 0:00:21]}  Bd5 {[%clk 0:00:27]} 48. Rf4+ {[%clk 0:00:21]}  Ke7 {[%clk 0:00:23]} 49. h4 {[%clk 0:00:22]}  h6 {[%clk 0:00:19]} 50. h5 {[%clk 0:00:19]}  g5 {[%clk 0:00:18]} 51. Rf5 {[%clk 0:00:19]}  Ke6 {[%clk 0:00:16]} 52. Rf8 {[%clk 0:00:19]}  Bc6 {[%clk 0:00:14]} 53. Rf5 {[%clk 0:00:16]}  Ra1 {[%clk 0:00:08]} 54. Rf8 {[%clk 0:00:14]}  Ra3 {[%clk 0:00:06]} 55. Rf5 {[%clk 0:00:14]}  Ke7 {[%clk 0:00:05]} 56. Re5+ {[%clk 0:00:13]}  Kf6 {[%clk 0:00:05]} 57. Rf5+ {[%clk 0:00:14]}  Ke6 {[%clk 0:00:04]} 58. Rf8 {[%clk 0:00:13]}  Bd5 {[%clk 0:00:04]} 59. Rf5 {[%clk 0:00:14]}  Re3 {[%clk 0:00:04]} 60. Rf8 {[%clk 0:00:13]}  Rd3 {[%clk 0:00:04]} 61. Re8+ {[%clk 0:00:13]}  Kf7 {[%clk 0:00:04]} 62. Rh8 {[%clk 0:00:10]}  Rxf3+ {[%clk 0:00:04]} 63. Kh2 {[%clk 0:00:11]}  Rf6 {[%clk 0:00:03]} 64. Rh7+ {[%clk 0:00:11]}  Ke6 {[%clk 0:00:03]} 65. Ra7 {[%clk 0:00:10]}  Ke5 {[%clk 0:00:03]} 66. Kg3 {[%clk 0:00:10]}  Rf3+ {[%clk 0:00:03]} 67. Kh2 {[%clk 0:00:10]}  Kf4 {[%clk 0:00:03]} 68. Ra4+ {[%clk 0:00:10]}  Be4 {[%clk 0:00:03]} 69. Rb4 {[%clk 0:00:08]}  Rf2+ {[%clk 0:00:04]} 70. Kh3 {[%clk 0:00:08]}  Rf3+ {[%clk 0:00:04]} 71. Kh2 {[%clk 0:00:09]}  Re3 {[%clk 0:00:05]} 0-1


[Site "https://www.chess.com"]

[Event "Titled Tuesday Blitz March 07 Early 2023"]
[White "Real_OceanStorm"]
[Black "Dinu, Dumitru-Daniel"]
[BlackFideId "1208403"]
[WhiteElo "2777"]
[BlackElo "2240"]
[Result "1-0"]
[Round "01"]
[TimeControl "180+2"]
[Date "2023.03.07"]
[WhiteClock "0:00:51"]
[BlackClock "0:00:01"]

1. e4 {[%clk 0:03:00]}  c5 {[%clk 0:02:58]} 2. c3 {[%clk 0:02:58]}  d5 {[%clk 0:02:57]} 3. e5 {[%clk 0:02:59]}  Nc6 {[%clk 0:02:56]} 4. d4 {[%clk 0:02:57]}  cxd4 {[%clk 0:02:44]} 5. cxd4 {[%clk 0:02:58]}  g6 {[%clk 0:02:45]} 6. Nc3 {[%clk 0:02:57]}  Bg7 {[%clk 0:02:41]} 7. h3 {[%clk 0:02:58]}  Bf5 {[%clk 0:02:38]} 8. Bb5 {[%clk 0:02:57]}  Qb6 {[%clk 0:02:37]} 9. Nxd5 {[%clk 0:02:44]}  Qa5+ {[%clk 0:02:32]} 10. Bd2 {[%clk 0:02:42]}  Qd8 {[%clk 0:02:31]} 11. Ne3 {[%clk 0:02:42]}  Qxd4 {[%clk 0:02:24]} 12. Nf3 {[%clk 0:02:09]}  Qd7 {[%clk 0:01:53]} 13. Nxf5 {[%clk 0:01:45]}  Qxf5 {[%clk 0:01:22]} 14. Qa4 {[%clk 0:01:43]}  Qd7 {[%clk 0:00:28]} 15. O-O {[%clk 0:01:36]}  e6 {[%clk 0:00:27]} 16. Rac1 {[%clk 0:01:34]}  Nge7 {[%clk 0:00:27]} 17. Rfd1 {[%clk 0:01:34]}  O-O {[%clk 0:00:21]} 18. Bb4 {[%clk 0:01:33]}  Qe8 {[%clk 0:00:18]} 19. Bxc6 {[%clk 0:01:26]}  bxc6 {[%clk 0:00:15]} 20. Qa3 {[%clk 0:01:26]}  Nd5 {[%clk 0:00:10]} 21. Bxf8 {[%clk 0:01:22]}  Bxf8 {[%clk 0:00:11]} 22. Qb3 {[%clk 0:01:22]}  Rb8 {[%clk 0:00:11]} 23. Qc2 {[%clk 0:01:22]}  Nb4 {[%clk 0:00:10]} 24. Qd2 {[%clk 0:01:23]}  Nxa2 {[%clk 0:00:10]} 25. Ra1 {[%clk 0:01:23]}  Nb4 {[%clk 0:00:10]} 26. Rxa7 {[%clk 0:01:23]}  Bc5 {[%clk 0:00:10]} 27. Rd7 {[%clk 0:01:22]}  Kg7 {[%clk 0:00:10]} 28. Qc3 {[%clk 0:01:09]}  Be7 {[%clk 0:00:07]} 29. b3 {[%clk 0:01:09]}  Nd5 {[%clk 0:00:07]} 30. Qxc6 {[%clk 0:01:09]}  Rxb3 {[%clk 0:00:06]} 31. Rc1 {[%clk 0:01:09]}  Nb4 {[%clk 0:00:05]} 32. Qc8 {[%clk 0:01:08]}  Qxc8 {[%clk 0:00:04]} 33. Rxc8 {[%clk 0:01:09]}  Bf8 {[%clk 0:00:03]} 34. Ng5 {[%clk 0:01:09]}  Rb1+ {[%clk 0:00:02]} 35. Kh2 {[%clk 0:01:09]}  Kh6 {[%clk 0:00:02]} 36. Nxf7+ {[%clk 0:01:05]}  Kh5 {[%clk 0:00:02]} 37. g4+ {[%clk 0:01:04]}  Kh4 {[%clk 0:00:02]} 38. Rxf8 {[%clk 0:01:04]}  Rf1 {[%clk 0:00:02]} 39. Kg2 {[%clk 0:00:50]}  Rc1 {[%clk 0:00:02]} 40. Rh8 {[%clk 0:00:50]}  Nd3 {[%clk 0:00:01]} 41. Rxh7# {[%clk 0:00:51]} 1-0


[Site "https://www.chess.com"]

[Event "Titled Tuesday Blitz March 07 Early 2023"]
[White "Staudenhocker43"]
[Black "Fier, Alexandr"]
[BlackFideId "2107139"]
[WhiteElo "2424"]
[BlackElo "2610"]
[Result "0-1"]
[Round "01"]
[TimeControl "180+2"]
[Date "2023.03.07"]
[WhiteClock "0:00:14"]
[BlackClock "0:00:32"]

1. d4 {[%clk 0:03:00]}  Nf6 {[%clk 0:02:58]} 2. c4 {[%clk 0:03:00]}  c5 {[%clk 0:02:58]} 3. d5 {[%clk 0:02:59]}  e6 {[%clk 0:02:59]} 4. Nc3 {[%clk 0:02:59]}  exd5 {[%clk 0:02:59]} 5. cxd5 {[%clk 0:03:00]}  d6 {[%clk 0:03:00]} 6. e4 {[%clk 0:02:59]}  g6 {[%clk 0:03:00]} 7. Nge2 {[%clk 0:03:00]}  h5 {[%clk 0:02:57]} 8. f3 {[%clk 0:02:47]}  Nbd7 {[%clk 0:02:49]} 9. Bg5 {[%clk 0:02:43]}  Bh6 {[%clk 0:02:49]} 10. Bxh6 {[%clk 0:02:43]}  Rxh6 {[%clk 0:02:49]} 11. Qd2 {[%clk 0:02:44]}  Rh8 {[%clk 0:02:48]} 12. Nf4 {[%clk 0:02:41]}  a6 {[%clk 0:02:47]} 13. a4 {[%clk 0:02:41]}  Qe7 {[%clk 0:02:47]} 14. Be2 {[%clk 0:02:40]}  Kf8 {[%clk 0:02:47]} 15. O-O {[%clk 0:02:39]}  Kg7 {[%clk 0:02:47]} 16. Rae1 {[%clk 0:02:39]}  Ne5 {[%clk 0:02:36]} 17. Nd3 {[%clk 0:02:36]}  Nxd3 {[%clk 0:02:33]} 18. Bxd3 {[%clk 0:02:36]}  Qe5 {[%clk 0:02:24]} 19. Qe3 {[%clk 0:02:33]}  Re8 {[%clk 0:02:18]} 20. f4 {[%clk 0:02:32]}  Qd4 {[%clk 0:02:18]} 21. Qxd4 {[%clk 0:02:25]}  cxd4 {[%clk 0:02:19]} 22. Ne2 {[%clk 0:02:14]}  Nxe4 {[%clk 0:02:18]} 23. Nxd4 {[%clk 0:02:14]}  Nf6 {[%clk 0:02:14]} 24. Rxe8 {[%clk 0:02:13]}  Nxe8 {[%clk 0:02:15]} 25. Re1 {[%clk 0:02:09]}  Nf6 {[%clk 0:02:15]} 26. Bc4 {[%clk 0:02:02]}  Bd7 {[%clk 0:02:15]} 27. b3 {[%clk 0:01:55]}  Rb8 {[%clk 0:02:10]} 28. Rd1 {[%clk 0:01:42]}  b5 {[%clk 0:02:06]} 29. axb5 {[%clk 0:01:42]}  axb5 {[%clk 0:02:07]} 30. Be2 {[%clk 0:01:42]}  Nxd5 {[%clk 0:02:06]} 31. g3 {[%clk 0:01:40]}  Nc3 {[%clk 0:02:06]} 32. Rd2 {[%clk 0:01:39]}  b4 {[%clk 0:02:06]} 33. Bf3 {[%clk 0:01:37]}  Re8 {[%clk 0:02:02]} 34. Kf2 {[%clk 0:01:36]}  d5 {[%clk 0:01:59]} 35. Nc2 {[%clk 0:01:35]}  Bf5 {[%clk 0:01:57]} 36. Nxb4 {[%clk 0:01:33]}  Be4 {[%clk 0:01:57]} 37. Rd4 {[%clk 0:01:22]}  f5 {[%clk 0:01:44]} 38. Nc6 {[%clk 0:01:08]}  Ra8 {[%clk 0:01:42]} 39. Rd2 {[%clk 0:01:06]}  Ra3 {[%clk 0:01:39]} 40. Nd4 {[%clk 0:01:05]}  Kf6 {[%clk 0:01:35]} 41. b4 {[%clk 0:01:03]}  Bxf3 {[%clk 0:01:34]} 42. Kxf3 {[%clk 0:00:58]}  Ne4+ {[%clk 0:01:33]} 43. Ke2 {[%clk 0:00:58]}  Nxd2 {[%clk 0:01:33]} 44. Kxd2 {[%clk 0:00:59]}  Ke7 {[%clk 0:01:31]} 45. Nc6+ {[%clk 0:00:57]}  Kd6 {[%clk 0:01:30]} 46. Ne5 {[%clk 0:00:57]}  h4 {[%clk 0:01:22]} 47. gxh4 {[%clk 0:00:54]}  Rb3 {[%clk 0:01:16]} 48. Nxg6 {[%clk 0:00:43]}  Rxb4 {[%clk 0:01:15]} 49. Kc3 {[%clk 0:00:32]}  Rb1 {[%clk 0:01:13]} 50. h5 {[%clk 0:00:31]}  Rh1 {[%clk 0:01:10]} 51. h4 {[%clk 0:00:30]}  Rg1 {[%clk 0:00:54]} 52. Kd4 {[%clk 0:00:27]}  Ke6 {[%clk 0:00:48]} 53. Nf8+ {[%clk 0:00:26]}  Kf7 {[%clk 0:00:47]} 54. Ng6 {[%clk 0:00:25]}  Kf6 {[%clk 0:00:43]} 55. Kxd5 {[%clk 0:00:20]}  Rd1+ {[%clk 0:00:44]} 56. Kc4 {[%clk 0:00:20]}  Rd7 {[%clk 0:00:43]} 57. Ne5 {[%clk 0:00:19]}  Rh7 {[%clk 0:00:43]} 58. Kd4 {[%clk 0:00:18]}  Rxh5 {[%clk 0:00:43]} 59. Nf3 {[%clk 0:00:19]}  Rh8 {[%clk 0:00:43]} 60. Ke3 {[%clk 0:00:19]}  Ke6 {[%clk 0:00:39]} 61. Ng5+ {[%clk 0:00:19]}  Kd5 {[%clk 0:00:39]} 62. Nf3 {[%clk 0:00:19]}  Re8+ {[%clk 0:00:38]} 63. Ne5 {[%clk 0:00:20]}  Ra8 {[%clk 0:00:37]} 64. Kf3 {[%clk 0:00:18]}  Ra3+ {[%clk 0:00:36]} 65. Kg2 {[%clk 0:00:18]}  Ke4 {[%clk 0:00:36]} 66. Ng6 {[%clk 0:00:19]}  Ra7 {[%clk 0:00:34]} 67. h5 {[%clk 0:00:20]}  Rh7 {[%clk 0:00:35]} 68. Kg3 {[%clk 0:00:13]}  Rxh5 {[%clk 0:00:34]} 69. Ne5 {[%clk 0:00:14]}  Rh1 {[%clk 0:00:34]} 70. Kg2 {[%clk 0:00:12]}  Rh7 {[%clk 0:00:33]} 71. Kg3 {[%clk 0:00:11]}  Rg7+ {[%clk 0:00:34]} 72. Kh4 {[%clk 0:00:12]}  Kxf4 {[%clk 0:00:34]} 73. Nd3+ {[%clk 0:00:12]}  Ke3 {[%clk 0:00:34]} 74. Ne5 {[%clk 0:00:12]}  f4 {[%clk 0:00:32]} 75. Ng4+ {[%clk 0:00:13]}  Rxg4+ {[%clk 0:00:32]} 76. Kxg4 {[%clk 0:00:14]}  f3 {[%clk 0:00:32]} 0-1


[Site "https://www.chess.com"]

[Event "Titled Tuesday Blitz March 07 Early 2023"]
[White "Orozbaev, Eldiar"]
[Black "Andreev, Konstantin"]
[WhiteFideId "13802240"]
[BlackFideId "24239305"]
[WhiteElo "2201"]
[BlackElo "2106"]
[Result "0-1"]
[Round "01"]
[TimeControl "180+2"]
[Date "2023.03.07"]
[WhiteClock "0:00:01"]
[BlackClock "0:00:04"]

1. e4 {[%clk 0:02:50]}  c5 {[%clk 0:02:59]} 2. c3 {[%clk 0:02:45]}  d5 {[%clk 0:02:58]} 3. exd5 {[%clk 0:02:45]}  Qxd5 {[%clk 0:02:59]} 4. Nf3 {[%clk 0:02:45]}  Nf6 {[%clk 0:02:59]} 5. d4 {[%clk 0:02:46]}  Bg4 {[%clk 0:02:59]} 6. Be2 {[%clk 0:02:46]}  e6 {[%clk 0:02:58]} 7. O-O {[%clk 0:02:46]}  cxd4 {[%clk 0:02:58]} 8. Nxd4 {[%clk 0:02:46]}  Bxe2 {[%clk 0:02:58]} 9. Qxe2 {[%clk 0:02:47]}  Nc6 {[%clk 0:02:57]} 10. Nb5 {[%clk 0:02:46]}  Rc8 {[%clk 0:02:48]} 11. Rd1 {[%clk 0:02:41]}  Qf5 {[%clk 0:02:48]} 12. N1a3 {[%clk 0:02:24]}  a6 {[%clk 0:02:44]} 13. Nd6+ {[%clk 0:02:17]}  Bxd6 {[%clk 0:02:43]} 14. Rxd6 {[%clk 0:02:18]}  Nd5 {[%clk 0:02:21]} 15. Nc4 {[%clk 0:01:45]}  O-O {[%clk 0:02:18]} 16. Ne3 {[%clk 0:01:43]}  Qe5 {[%clk 0:02:14]} 17. Rd7 {[%clk 0:01:41]}  Nf4 {[%clk 0:01:59]} 18. Qf3 {[%clk 0:01:12]}  Rfd8 {[%clk 0:01:58]} 19. Rxb7 {[%clk 0:01:08]}  Na5 {[%clk 0:01:34]} 20. Rb4 {[%clk 0:01:00]}  Nd5 {[%clk 0:01:23]} 21. Re4 {[%clk 0:00:56]}  Qd6 {[%clk 0:01:23]} 22. Nxd5 {[%clk 0:00:52]}  Qxd5 {[%clk 0:01:24]} 23. Be3 {[%clk 0:00:52]}  Nc4 {[%clk 0:01:22]} 24. b3 {[%clk 0:00:48]}  Ne5 {[%clk 0:01:18]} 25. Qf4 {[%clk 0:00:43]}  Ng6 {[%clk 0:01:17]} 26. Qf3 {[%clk 0:00:38]}  Ne5 {[%clk 0:01:15]} 27. Qf4 {[%clk 0:00:29]}  Ng6 {[%clk 0:01:15]} 28. Qf3 {[%clk 0:00:26]}  Rxc3 {[%clk 0:01:15]} 29. Ra4 {[%clk 0:00:08]}  Qb5 {[%clk 0:01:05]} 30. g3 {[%clk 0:00:06]}  Ne5 {[%clk 0:01:02]} 31. Qf4 {[%clk 0:00:06]}  Nd3 {[%clk 0:00:56]} 32. Qh4 {[%clk 0:00:04]}  Rdc8 {[%clk 0:00:44]} 33. Rd1 {[%clk 0:00:05]}  h6 {[%clk 0:00:41]} 34. Rd4 {[%clk 0:00:04]}  Ne5 {[%clk 0:00:38]} 35. Qe4 {[%clk 0:00:05]}  f5 {[%clk 0:00:34]} 36. Rd8+ {[%clk 0:00:05]}  Kh7 {[%clk 0:00:34]} 37. Qf4 {[%clk 0:00:03]}  Nd3 {[%clk 0:00:25]} 38. Qd6 {[%clk 0:00:02]}  Rxd8 {[%clk 0:00:15]} 39. Qxd8 {[%clk 0:00:02]}  Ne5 {[%clk 0:00:15]} 40. Qd6 {[%clk 0:00:03]}  Qe2 {[%clk 0:00:10]} 41. Kg2 {[%clk 0:00:02]}  Qf3+ {[%clk 0:00:10]} 42. Kf1 {[%clk 0:00:03]}  Ng4 {[%clk 0:00:08]} 43. Qd4 {[%clk 0:00:01]}  Rxe3 {[%clk 0:00:06]} 44. Kg1 {[%clk 0:00:01]}  Re2 {[%clk 0:00:06]} 45. Rf1 {[%clk 0:00:01]}  Ne5 {[%clk 0:00:04]} 0-1


[Site "https://www.chess.com"]